[Event "*** Titled Tuesday Blitz"]
[Site "Chess.com"]
[Date "2020.05.26"]
[Round "3"]
[White "AungTZ"]
[Black "lelya96"]
[Result "0-1"]
[WhiteElo "1981"]
[BlackElo "2274"]
[TimeControl "180+1"]
[EndTime "10:28:50 PDT"]
[Termination "lelya96 won by checkmate"]

1. e4 {[%clk 0:02:28.1]} 1... e5 {[%clk 0:02:57.9]} 2. Nf3 {[%clk 0:02:27.9]}
2... Nc6 {[%clk 0:02:57.4]} 3. d4 {[%clk 0:02:26.5]} 3... exd4 {[%clk
0:02:55.7]} 4. Nxd4 {[%clk 0:02:26.6]} 4... Bb4+ {[%clk 0:02:54.8]} 5. c3 {[%clk
0:02:24.4]} 5... Bc5 {[%clk 0:02:54.5]} 6. Be2 {[%clk 0:02:24.1]} 6... Nge7
{[%clk 0:02:53]} 7. O-O {[%clk 0:02:22.4]} 7... O-O {[%clk 0:02:52.2]} 8. Be3
{[%clk 0:02:21.5]} 8... Bb6 {[%clk 0:02:50.3]} 9. a4 {[%clk 0:02:19.9]} 9... d6
{[%clk 0:02:48.1]} 10. Na3 {[%clk 0:02:17.6]} 10... f5 {[%clk 0:02:32.9]} 11.
exf5 {[%clk 0:01:54.9]} 11... Bxd4 {[%clk 0:02:17.4]} 12. cxd4 {[%clk
0:01:41.4]} 12... Nxf5 {[%clk 0:02:16.2]} 13. Qb3+ {[%clk 0:01:21.9]} 13... Kh8
{[%clk 0:02:12.4]} 14. d5 {[%clk 0:01:18.8]} 14... Ncd4 {[%clk 0:01:58.2]} 15.
Bxd4 {[%clk 0:01:13.6]} 15... Nxd4 {[%clk 0:01:58.1]} 16. Qd3 {[%clk 0:01:13.9]}
16... Nxe2+ {[%clk 0:01:56.4]} 17. Qxe2 {[%clk 0:01:13.7]} 17... Qg5 {[%clk
0:01:56]} 18. f4 {[%clk 0:01:09.3]} 18... Qxd5 {[%clk 0:01:53.5]} 19. Nb5 {[%clk
0:01:09]} 19... Bf5 {[%clk 0:01:47]} 20. Kh1 {[%clk 0:01:07.4]} 20... Rae8
{[%clk 0:01:21.2]} 21. Qf2 {[%clk 0:01:01.8]} 21... Re7 {[%clk 0:01:07.7]} 22.
Rae1 {[%clk 0:00:55.1]} 22... Ref7 {[%clk 0:01:05.4]} 23. Qxa7 {[%clk
0:00:49.6]} 23... Bd3 {[%clk 0:00:51.4]} 24. Nc3 {[%clk 0:00:44.9]} 24... Qc6
{[%clk 0:00:47.8]} 25. Rf3 {[%clk 0:00:40.5]} 25... Rxf4 {[%clk 0:00:32]} 26.
Rxf4 {[%clk 0:00:39.3]} 26... Rxf4 {[%clk 0:00:31.2]} 27. Qe3 {[%clk 0:00:37.2]}
27... Rf1+ {[%clk 0:00:13.2]} 28. Rxf1 {[%clk 0:00:33.6]} 28... Bxf1 {[%clk
0:00:14.1]} 29. Qf2 {[%clk 0:00:33]} 29... Bxg2+ {[%clk 0:00:11.5]} 30. Qxg2
{[%clk 0:00:31.9]} 30... Qb6 {[%clk 0:00:11.6]} 31. Qe2 {[%clk 0:00:28]} 31...
h6 {[%clk 0:00:11.6]} 32. Qe8+ {[%clk 0:00:24.9]} 32... Kh7 {[%clk 0:00:12]} 33.
Qe4+ {[%clk 0:00:25.2]} 33... Kg8 {[%clk 0:00:12.3]} 34. Qe2 {[%clk 0:00:24.6]}
34... Qc6+ {[%clk 0:00:12]} 35. Kg1 {[%clk 0:00:23.4]} 35... Qc5+ {[%clk
0:00:12.4]} 36. Qf2 {[%clk 0:00:22.8]} 36... Qc4 {[%clk 0:00:12]} 37. Qd2 {[%clk
0:00:20.5]} 37... Qg4+ {[%clk 0:00:11.9]} 38. Kf1 {[%clk 0:00:19.5]} 38... Qf5+
{[%clk 0:00:11.9]} 39. Ke1 {[%clk 0:00:18.6]} 39... Qe6+ {[%clk 0:00:11]} 40.
Kd1 {[%clk 0:00:18.1]} 40... c6 {[%clk 0:00:11.4]} 41. Kc1 {[%clk 0:00:16.6]}
41... d5 {[%clk 0:00:11.5]} 42. Kb1 {[%clk 0:00:15.9]} 42... Qf5+ {[%clk
0:00:11.9]} 43. Ka2 {[%clk 0:00:15.3]} 43... Qf6 {[%clk 0:00:11.4]} 44. Qe2
{[%clk 0:00:14.1]} 44... d4 {[%clk 0:00:11.6]} 45. Qc4+ {[%clk 0:00:13.9]} 45...
Kh7 {[%clk 0:00:11.4]} 46. Qd3+ {[%clk 0:00:12.6]} 46... g6 {[%clk 0:00:10.8]}
47. Ne4 {[%clk 0:00:11.7]} 47... Qe6+ {[%clk 0:00:11.2]} 48. Ka3 {[%clk
0:00:11.4]} 48... Qd5 {[%clk 0:00:11.2]} 49. Nd2 {[%clk 0:00:09.5]} 49... c5
{[%clk 0:00:11]} 50. Nc4 {[%clk 0:00:09.5]} 50... Qd7 {[%clk 0:00:09.5]} 51. b3
{[%clk 0:00:10.4]} 51... b5 {[%clk 0:00:09.3]} 52. Qc3 {[%clk 0:00:10.1]} 52...
dxc3 {[%clk 0:00:07.9]} 53. axb5 {[%clk 0:00:11]} 53... c2 {[%clk 0:00:08.1]}
54. Ka4 {[%clk 0:00:11.8]} 54... c1=Q {[%clk 0:00:08.4]} 55. Ka5 {[%clk
0:00:11.3]} 55... Qa1+ {[%clk 0:00:08.6]} 56. Kb6 {[%clk 0:00:12.2]} 56... Qaa7#
{[%clk 0:00:08.2]} 0-1

[Event "*** Titled Tuesday Blitz"]
[Site "Chess.com"]
[Date "2020.05.26"]
[Round "3"]
[White "SHIVACalypso"]
[Black "fish7728"]
[Result "1-0"]
[WhiteElo "2288"]
[BlackElo "2022"]
[TimeControl "180+1"]
[EndTime "10:28:52 PDT"]
[Termination "SHIVACalypso won on time"]

1. Nf3 {[%clk 0:03:00.9]} 1... Nf6 {[%clk 0:02:57.5]} 2. c4 {[%clk 0:03:00]}
2... d5 {[%clk 0:02:57.6]} 3. g3 {[%clk 0:03:00.6]} 3... c6 {[%clk 0:02:55]} 4.
Bg2 {[%clk 0:03:00.8]} 4... Bf5 {[%clk 0:02:51.6]} 5. O-O {[%clk 0:03:00.4]}
5... h6 {[%clk 0:02:47.3]} 6. d4 {[%clk 0:02:52.2]} 6... e6 {[%clk 0:02:44]} 7.
Nc3 {[%clk 0:02:49.2]} 7... Nbd7 {[%clk 0:02:37.4]} 8. Nd2 {[%clk 0:02:19.2]}
8... Be7 {[%clk 0:02:34.1]} 9. e4 {[%clk 0:02:10.1]} 9... dxe4 {[%clk
0:02:33.8]} 10. Ndxe4 {[%clk 0:02:08.9]} 10... Nxe4 {[%clk 0:02:33.4]} 11. Nxe4
{[%clk 0:02:09]} 11... Nf6 {[%clk 0:02:33]} 12. f3 {[%clk 0:02:04.1]} 12... O-O
{[%clk 0:02:25.4]} 13. Be3 {[%clk 0:02:01.6]} 13... Qc7 {[%clk 0:02:07.3]} 14.
Qe2 {[%clk 0:01:51.3]} 14... e5 {[%clk 0:02:00]} 15. Rfd1 {[%clk 0:01:42.2]}
15... exd4 {[%clk 0:01:55.3]} 16. Nxf6+ {[%clk 0:01:39.4]} 16... Bxf6 {[%clk
0:01:53.6]} 17. Bxd4 {[%clk 0:01:40.3]} 17... Rfe8 {[%clk 0:01:47.1]} 18. Qf2
{[%clk 0:01:36.2]} 18... Bxd4 {[%clk 0:01:42.2]} 19. Rxd4 {[%clk 0:01:37.1]}
19... Rad8 {[%clk 0:01:38]} 20. Bf1 {[%clk 0:01:17.2]} 20... Rxd4 {[%clk
0:01:28.8]} 21. Qxd4 {[%clk 0:01:18.1]} 21... c5 {[%clk 0:01:25.5]} 22. Qd2
{[%clk 0:01:15]} 22... Qd8 {[%clk 0:01:20.8]} 23. Rd1 {[%clk 0:01:13.1]} 23...
Qxd2 {[%clk 0:01:16.6]} 24. Rxd2 {[%clk 0:01:14]} 24... Re7 {[%clk 0:01:14.5]}
25. Kf2 {[%clk 0:01:14.2]} 25... Rd7 {[%clk 0:01:13.4]} 26. Rd5 {[%clk
0:01:10.8]} 26... Be6 {[%clk 0:00:57.8]} 27. Rxd7 {[%clk 0:01:07.4]} 27... Bxd7
{[%clk 0:00:56.8]} 28. Ke3 {[%clk 0:01:07.8]} 28... Kf8 {[%clk 0:00:51]} 29. Kf4
{[%clk 0:01:03.9]} 29... Ke7 {[%clk 0:00:47.9]} 30. Ke5 {[%clk 0:01:02.2]} 30...
Be6 {[%clk 0:00:43.6]} 31. f4 {[%clk 0:01:01]} 31... f6+ {[%clk 0:00:40.2]} 32.
Ke4 {[%clk 0:00:59.3]} 32... Kd6 {[%clk 0:00:38.8]} 33. a3 {[%clk 0:00:41.1]}
33... b6 {[%clk 0:00:38]} 34. f5 {[%clk 0:00:40.2]} 34... Bd7 {[%clk 0:00:31.6]}
35. Kf4 {[%clk 0:00:37.3]} 35... Bc6 {[%clk 0:00:24.7]} 36. Bd3 {[%clk
0:00:34.1]} 36... Bg2 {[%clk 0:00:19.8]} 37. Be2 {[%clk 0:00:14.9]} 37... Bc6
{[%clk 0:00:18.9]} 38. h4 {[%clk 0:00:13.6]} 38... Be8 {[%clk 0:00:18.3]} 39. g4
{[%clk 0:00:13.3]} 39... Bf7 {[%clk 0:00:17.2]} 40. g5 {[%clk 0:00:12.8]} 40...
hxg5+ {[%clk 0:00:16.6]} 41. hxg5 {[%clk 0:00:13.7]} 41... Be8 {[%clk
0:00:13.7]} 42. gxf6 {[%clk 0:00:09.8]} 42... gxf6 {[%clk 0:00:12.7]} 43. Bd3
{[%clk 0:00:10.3]} 43... Bf7 {[%clk 0:00:12.1]} 44. b3 {[%clk 0:00:10]} 44...
Bg8 {[%clk 0:00:11.4]} 45. Be2 {[%clk 0:00:07.1]} 45... b5 {[%clk 0:00:10.4]}
46. cxb5 {[%clk 0:00:06.2]} 46... Bxb3 {[%clk 0:00:08.7]} 47. Ke4 {[%clk
0:00:06.7]} 47... Bd5+ {[%clk 0:00:07.3]} 48. Kd3 {[%clk 0:00:05.6]} 48... Ke5
{[%clk 0:00:05]} 49. Bg4 {[%clk 0:00:05]} 49... Be4+ {[%clk 0:00:03.6]} 50. Kc3
{[%clk 0:00:05]} 50... Bd5 {[%clk 0:00:02.7]} 51. a4 {[%clk 0:00:04.5]} 1-0

[Event "*** Titled Tuesday Blitz"]
[Site "Chess.com"]
[Date "2020.05.26"]
[Round "3"]
[White "2346PL"]
[Black "ChronicUnhappiness"]
[Result "1-0"]
[WhiteElo "2504"]
[BlackElo "2281"]
[TimeControl "180+1"]
[EndTime "10:28:55 PDT"]
[Termination "2346PL won by resignation"]

1. d4 {[%clk 0:03:00.9]} 1... Nf6 {[%clk 0:02:59.4]} 2. Bg5 {[%clk 0:03:00.5]}
2... Ne4 {[%clk 0:02:58.4]} 3. Bf4 {[%clk 0:03:00.7]} 3... d5 {[%clk 0:02:57.2]}
4. e3 {[%clk 0:03:01]} 4... e6 {[%clk 0:02:56.3]} 5. Bd3 {[%clk 0:03:00.7]} 5...
c5 {[%clk 0:02:53.7]} 6. Nd2 {[%clk 0:02:59.9]} 6... Nxd2 {[%clk 0:02:52.5]} 7.
Qxd2 {[%clk 0:02:59.9]} 7... Nc6 {[%clk 0:02:52.3]} 8. c3 {[%clk 0:02:59.6]}
8... Bd6 {[%clk 0:02:48.9]} 9. Bxd6 {[%clk 0:02:58.9]} 9... Qxd6 {[%clk
0:02:48.3]} 10. f4 {[%clk 0:02:59.6]} 10... O-O {[%clk 0:02:03]} 11. Nf3 {[%clk
0:02:59]} 11... f6 {[%clk 0:02:03]} 12. O-O-O {[%clk 0:02:43.9]} 12... b5 {[%clk
0:01:36]} 13. e4 {[%clk 0:02:30]} 13... cxd4 {[%clk 0:01:33.8]} 14. Nxd4 {[%clk
0:02:26.9]} 14... Nxd4 {[%clk 0:01:30.2]} 15. cxd4 {[%clk 0:02:27.8]} 15... Qc7+
{[%clk 0:00:57.7]} 16. Kb1 {[%clk 0:02:26.1]} 16... dxe4 {[%clk 0:00:57.7]} 17.
Bxe4 {[%clk 0:02:25.9]} 17... Bb7 {[%clk 0:00:57.8]} 18. Qe2 {[%clk 0:02:17.2]}
18... Bxe4+ {[%clk 0:00:54.5]} 19. Qxe4 {[%clk 0:02:17.3]} 19... Qd6 {[%clk
0:00:54.5]} 20. Rhe1 {[%clk 0:02:14.2]} 20... Rfe8 {[%clk 0:00:54.2]} 21. Rd3
{[%clk 0:01:42.8]} 21... Qd5 {[%clk 0:00:49.3]} 22. Qxd5 {[%clk 0:01:08.2]}
22... exd5 {[%clk 0:00:48.3]} 23. Rde3 {[%clk 0:01:08.3]} 23... Rxe3 {[%clk
0:00:42.3]} 24. Rxe3 {[%clk 0:01:09.2]} 24... Kf7 {[%clk 0:00:42.5]} 25. a4
{[%clk 0:01:07.7]} 25... b4 {[%clk 0:00:38.2]} 26. a5 {[%clk 0:00:49.8]} 26...
Rc8 {[%clk 0:00:31.4]} 27. f5 {[%clk 0:00:25.1]} 27... Rc4 {[%clk 0:00:20]} 28.
Rd3 {[%clk 0:00:21.1]} 28... Rc7 {[%clk 0:00:17.5]} 29. Rb3 {[%clk 0:00:19.2]}
29... Rc4 {[%clk 0:00:15.6]} 30. Rd3 {[%clk 0:00:19.3]} 30... Ke7 {[%clk
0:00:15.8]} 31. b3 {[%clk 0:00:16.8]} 31... Rc7 {[%clk 0:00:11.2]} 32. Re3+
{[%clk 0:00:17]} 32... Kd7 {[%clk 0:00:11.1]} 33. Re6 {[%clk 0:00:16.4]} 33...
Rc3 {[%clk 0:00:09.9]} 34. Kb2 {[%clk 0:00:15.8]} 34... Rd3 {[%clk 0:00:09.9]}
35. Ra6 {[%clk 0:00:15.9]} 35... Rd2+ {[%clk 0:00:08.4]} 36. Kc1 {[%clk
0:00:15.7]} 36... Rxd4 {[%clk 0:00:09.3]} 37. Rxa7+ {[%clk 0:00:16.3]} 37... Kd6
{[%clk 0:00:09.8]} 38. Rxg7 {[%clk 0:00:16.5]} 38... Ke5 {[%clk 0:00:09.9]} 39.
a6 {[%clk 0:00:16.4]} 39... Rd3 {[%clk 0:00:06.1]} 40. a7 {[%clk 0:00:12.8]}
40... Rc3+ {[%clk 0:00:06]} 41. Kd2 {[%clk 0:00:13.4]} 41... Rc8 {[%clk
0:00:06.8]} 42. g4 {[%clk 0:00:10.6]} 42... Kf4 {[%clk 0:00:03.7]} 43. h3 {[%clk
0:00:10.1]} 43... Ra8 {[%clk 0:00:01.8]} 44. Rxh7 {[%clk 0:00:09.6]} 44... d4
{[%clk 0:00:02.7]} 45. Kd3 {[%clk 0:00:09.5]} 45... Ke5 {[%clk 0:00:02.6]} 46.
Rd7 {[%clk 0:00:07.7]} 46... Kf4 {[%clk 0:00:01.3]} 47. Kxd4 {[%clk 0:00:08]}
47... Kg5 {[%clk 0:00:02.2]} 48. Kd5 {[%clk 0:00:07.8]} 48... Re8 {[%clk
0:00:02.4]} 49. Rb7 {[%clk 0:00:07.2]} 49... Re5+ {[%clk 0:00:03.3]} 50. Kd6
{[%clk 0:00:06.9]} 50... Ra5 {[%clk 0:00:04.2]} 51. Kc6 {[%clk 0:00:05.7]} 51...
Kh4 {[%clk 0:00:05.1]} 52. Kc7 {[%clk 0:00:05.9]} 52... Kxh3 {[%clk 0:00:03.2]}
53. Kb8 {[%clk 0:00:06.2]} 53... Kxg4 {[%clk 0:00:03.3]} 54. a8=Q {[%clk
0:00:04.8]} 54... Rxa8+ {[%clk 0:00:04.2]} 55. Kxa8 {[%clk 0:00:05.3]} 55...
Kxf5 {[%clk 0:00:05.1]} 56. Rxb4 {[%clk 0:00:05.7]} 56... Ke5 {[%clk 0:00:05.1]}
57. Rh4 {[%clk 0:00:04.8]} 57... f5 {[%clk 0:00:06]} 58. b4 {[%clk 0:00:05]}
58... f4 {[%clk 0:00:06.9]} 59. b5 {[%clk 0:00:04.6]} 59... f3 {[%clk
0:00:07.8]} 60. Rh1 {[%clk 0:00:04.7]} 60... Kd6 {[%clk 0:00:07.4]} 61. b6
{[%clk 0:00:05.1]} 61... Kc6 {[%clk 0:00:08.3]} 62. b7 {[%clk 0:00:05.6]} 1-0

[Event "*** Titled Tuesday Blitz"]
[Site "Chess.com"]
[Date "2020.05.26"]
[Round "3"]
[White "savagemedusa"]
[Black "algatar2020"]
[Result "0-1"]
[WhiteElo "2230"]
[BlackElo "1721"]
[TimeControl "180+1"]
[EndTime "10:28:55 PDT"]
[Termination "algatar2020 won by resignation"]

1. d4 {[%clk 0:03:00.9]} 1... d6 {[%clk 0:03:00.7]} 2. c4 {[%clk 0:02:55.5]}
2... Nf6 {[%clk 0:03:01.6]} 3. Nc3 {[%clk 0:02:53.2]} 3... g6 {[%clk 0:03:02.5]}
4. e4 {[%clk 0:02:53.1]} 4... Bg7 {[%clk 0:03:03.4]} 5. Be2 {[%clk 0:02:52.4]}
5... Nbd7 {[%clk 0:03:03.9]} 6. Be3 {[%clk 0:02:50]} 6... e5 {[%clk 0:03:04.8]}
7. d5 {[%clk 0:02:50.1]} 7... a5 {[%clk 0:03:03.2]} 8. f3 {[%clk 0:02:38.5]}
8... O-O {[%clk 0:03:00.1]} 9. g4 {[%clk 0:02:38.4]} 9... Qe7 {[%clk 0:02:57.3]}
10. h4 {[%clk 0:02:36.9]} 10... c6 {[%clk 0:02:56.9]} 11. h5 {[%clk 0:02:30.4]}
11... cxd5 {[%clk 0:02:55.1]} 12. cxd5 {[%clk 0:02:20.5]} 12... Nc5 {[%clk
0:02:54.5]} 13. hxg6 {[%clk 0:02:10.4]} 13... fxg6 {[%clk 0:02:53.8]} 14. Qd2
{[%clk 0:02:08.3]} 14... Nfd7 {[%clk 0:02:48.6]} 15. Nh3 {[%clk 0:02:00.2]}
15... Rb8 {[%clk 0:02:43]} 16. Bg5 {[%clk 0:01:52.4]} 16... Bf6 {[%clk
0:02:41.1]} 17. Bh6 {[%clk 0:01:46.8]} 17... Rf7 {[%clk 0:02:40.3]} 18. O-O-O
{[%clk 0:01:39.1]} 18... b5 {[%clk 0:02:36.8]} 19. Bxb5 {[%clk 0:01:33.3]} 19...
Ba6 {[%clk 0:02:28.9]} 20. Bxa6 {[%clk 0:01:19.1]} 20... Nxa6 {[%clk 0:02:28.5]}
21. Kb1 {[%clk 0:01:13.9]} 21... Ndc5 {[%clk 0:02:20.8]} 22. Rh2 {[%clk
0:01:05.9]} 22... Nb4 {[%clk 0:02:13.4]} 23. Ng5 {[%clk 0:01:03.8]} 23... Bxg5
{[%clk 0:02:12.4]} 24. Bxg5 {[%clk 0:01:02.8]} 24... Qd7 {[%clk 0:02:08.8]} 25.
Qe3 {[%clk 0:00:56]} 25... Na4 {[%clk 0:01:55.5]} 26. Rdh1 {[%clk 0:00:52.5]}
26... Nxc3+ {[%clk 0:01:49.6]} 27. Qxc3 {[%clk 0:00:52]} 27... Na6 {[%clk
0:01:44.2]} 28. Ka1 {[%clk 0:00:49.1]} 28... Nc5 {[%clk 0:01:44]} 29. Rh3 {[%clk
0:00:39.4]} 29... a4 {[%clk 0:01:42]} 30. Qc2 {[%clk 0:00:37.3]} 30... Qb7
{[%clk 0:01:38.7]} 31. Be3 {[%clk 0:00:32]} 31... Rc7 {[%clk 0:01:11.1]} 32.
Bxc5 {[%clk 0:00:31]} 32... Rxc5 {[%clk 0:01:10.9]} 33. Qd2 {[%clk 0:00:29.1]}
33... a3 {[%clk 0:01:07.5]} 34. b3 {[%clk 0:00:26.7]} 34... Rc7 {[%clk
0:01:07.2]} 35. g5 {[%clk 0:00:19.1]} 35... Rbc8 {[%clk 0:01:04.4]} 36. R3h2
{[%clk 0:00:17]} 36... Qb5 {[%clk 0:01:02]} 37. Rd1 {[%clk 0:00:16]} 37... Qc5
{[%clk 0:00:49.1]} 38. Kb1 {[%clk 0:00:16.2]} 38... Qb5 {[%clk 0:00:46.2]} 39.
Rhh1 {[%clk 0:00:16]} 39... Rc2 {[%clk 0:00:42.8]} 40. Qxc2 {[%clk 0:00:15.7]}
40... Rxc2 {[%clk 0:00:42.7]} 41. Kxc2 {[%clk 0:00:16.6]} 41... Qe2+ {[%clk
0:00:42.7]} 42. Rd2 {[%clk 0:00:16.7]} 42... Qxf3 {[%clk 0:00:42.6]} 43. Re1
{[%clk 0:00:17.1]} 43... Qg3 {[%clk 0:00:41.9]} 44. Ree2 {[%clk 0:00:16.5]}
44... Qxg5 {[%clk 0:00:41.5]} 45. Rd3 {[%clk 0:00:16.9]} 45... Qg4 {[%clk
0:00:40.2]} 46. Kd2 {[%clk 0:00:16.7]} 46... h5 {[%clk 0:00:36.7]} 47. b4 {[%clk
0:00:15.9]} 47... Qf4+ {[%clk 0:00:35.8]} 48. Kc2 {[%clk 0:00:14.2]} 48... Qf1
{[%clk 0:00:34]} 49. Red2 {[%clk 0:00:13.9]} 49... Qe1 {[%clk 0:00:26.4]} 50.
Rxa3 {[%clk 0:00:12.4]} 50... Qxe4+ {[%clk 0:00:25.7]} 51. Kb2 {[%clk 0:00:13]}
51... Qxb4+ {[%clk 0:00:24.8]} 52. Rb3 {[%clk 0:00:12.9]} 52... Qxd2+ {[%clk
0:00:24.3]} 53. Ka3 {[%clk 0:00:13.8]} 53... Qxd5 {[%clk 0:00:21.5]} 54. Rb8+
{[%clk 0:00:14.7]} 54... Kg7 {[%clk 0:00:20.6]} 55. Rb7+ {[%clk 0:00:14.5]}
55... Qxb7 {[%clk 0:00:20.2]} 0-1

[Event "*** Titled Tuesday Blitz"]
[Site "Chess.com"]
[Date "2020.05.26"]
[Round "3"]
[White "kingnb"]
[Black "PauloCesarCosta_sad"]
[Result "1-0"]
[WhiteElo "2480"]
[BlackElo "2185"]
[TimeControl "180+1"]
[EndTime "10:28:56 PDT"]
[Termination "kingnb won on time"]

1. e4 {[%clk 0:02:59.5]} 1... e6 {[%clk 0:02:59.7]} 2. d4 {[%clk 0:02:56.7]}
2... d5 {[%clk 0:03:00.2]} 3. e5 {[%clk 0:02:56.8]} 3... c5 {[%clk 0:02:59.6]}
4. c3 {[%clk 0:02:57]} 4... Qb6 {[%clk 0:02:57.4]} 5. Nf3 {[%clk 0:02:57.2]}
5... Bd7 {[%clk 0:02:57.9]} 6. Bd3 {[%clk 0:02:47.1]} 6... Bb5 {[%clk
0:02:44.3]} 7. dxc5 {[%clk 0:02:46.8]} 7... Bxc5 {[%clk 0:02:34.4]} 8. O-O
{[%clk 0:02:45.7]} 8... a5 {[%clk 0:02:28.5]} 9. Bxb5+ {[%clk 0:02:42.8]} 9...
Qxb5 {[%clk 0:02:27.2]} 10. b4 {[%clk 0:02:42.8]} 10... axb4 {[%clk 0:02:18.9]}
11. cxb4 {[%clk 0:02:43]} 11... Qxb4 {[%clk 0:02:13]} 12. a4 {[%clk 0:02:33.3]}
12... Ne7 {[%clk 0:02:03.2]} 13. Nbd2 {[%clk 0:02:26.5]} 13... Nd7 {[%clk
0:01:54.8]} 14. Nb3 {[%clk 0:02:26]} 14... Rxa4 {[%clk 0:01:48.5]} 15. Bd2
{[%clk 0:02:22.4]} 15... Qb5 {[%clk 0:01:38.8]} 16. Rb1 {[%clk 0:01:41.4]} 16...
Qa6 {[%clk 0:01:38.7]} 17. Qc2 {[%clk 0:01:40.3]} 17... b6 {[%clk 0:01:29.5]}
18. h4 {[%clk 0:01:12.2]} 18... O-O {[%clk 0:01:24.2]} 19. h5 {[%clk 0:01:10.2]}
19... Rc8 {[%clk 0:01:15.1]} 20. Nxc5 {[%clk 0:01:09.8]} 20... bxc5 {[%clk
0:01:09.6]} 21. h6 {[%clk 0:01:09.1]} 21... gxh6 {[%clk 0:01:03.9]} 22. Bxh6
{[%clk 0:01:05.4]} 22... d4 {[%clk 0:01:03.9]} 23. Rfd1 {[%clk 0:00:58.9]} 23...
Ng6 {[%clk 0:00:53.9]} 24. Bg5 {[%clk 0:00:40.1]} 24... Ndxe5 {[%clk 0:00:47.9]}
25. Nxe5 {[%clk 0:00:41]} 25... Nxe5 {[%clk 0:00:48.8]} 26. Qe4 {[%clk
0:00:41.2]} 26... Ng6 {[%clk 0:00:41.8]} 27. Bf6 {[%clk 0:00:41.2]} 27... e5
{[%clk 0:00:36.5]} 28. Qf5 {[%clk 0:00:36.2]} 28... Qe6 {[%clk 0:00:31.3]} 29.
g4 {[%clk 0:00:07.6]} 29... Qxf5 {[%clk 0:00:29.8]} 30. gxf5 {[%clk 0:00:08.5]}
30... Nf4 {[%clk 0:00:27.9]} 31. Kh2 {[%clk 0:00:09.4]} 31... Re8 {[%clk
0:00:24.1]} 32. Rg1+ {[%clk 0:00:08.4]} 32... Kf8 {[%clk 0:00:13.4]} 33. Rb7
{[%clk 0:00:08.4]} 33... Ng6 {[%clk 0:00:09.5]} 34. fxg6 {[%clk 0:00:07.9]}
34... hxg6 {[%clk 0:00:09.5]} 35. Rg5 {[%clk 0:00:07.6]} 35... Rea8 {[%clk
0:00:06.1]} 36. Rxe5 {[%clk 0:00:06]} 36... R4a7 {[%clk 0:00:05.3]} 37. Rb5
{[%clk 0:00:05.1]} 37... c4 {[%clk 0:00:03.8]} 38. Red5 {[%clk 0:00:05.4]} 38...
d3 {[%clk 0:00:03.3]} 39. Rbc5 {[%clk 0:00:05.9]} 39... Ra2 {[%clk 0:00:02.2]}
40. Kg3 {[%clk 0:00:02.8]} 40... d2 {[%clk 0:00:02.3]} 41. Rxc4 {[%clk
0:00:03.3]} 41... R8a3+ {[%clk 0:00:01.9]} 42. f3 {[%clk 0:00:03.7]} 42... Ra8
{[%clk 0:00:02.8]} 43. Rcd4 {[%clk 0:00:02.4]} 43... d1=Q {[%clk 0:00:02.6]} 44.
Rxd1 {[%clk 0:00:02.3]} 44... Ke8 {[%clk 0:00:02.4]} 45. Rh1 {[%clk 0:00:02.6]}
1-0

[Event "*** Titled Tuesday Blitz"]
[Site "Chess.com"]
[Date "2020.05.26"]
[Round "3"]
[White "MariaFominykh"]
[Black "Chessialist"]
[Result "0-1"]
[WhiteElo "2343"]
[BlackElo "2547"]
[TimeControl "180+1"]
[EndTime "10:28:58 PDT"]
[Termination "Chessialist won on time"]

1. d4 {[%clk 0:03:00.9]} 1... Nf6 {[%clk 0:02:59.6]} 2. c4 {[%clk 0:03:00.7]}
2... e6 {[%clk 0:02:59.9]} 3. Nf3 {[%clk 0:03:00.2]} 3... d5 {[%clk 0:02:57.6]}
4. Nc3 {[%clk 0:02:59.5]} 4... Be7 {[%clk 0:02:57.8]} 5. Bg5 {[%clk 0:02:54.2]}
5... O-O {[%clk 0:02:57.7]} 6. e3 {[%clk 0:02:54.2]} 6... h6 {[%clk 0:02:58.4]}
7. Bh4 {[%clk 0:02:51.9]} 7... Ne4 {[%clk 0:02:58.5]} 8. Bxe7 {[%clk 0:02:49.2]}
8... Qxe7 {[%clk 0:02:59.4]} 9. cxd5 {[%clk 0:02:39]} 9... Nxc3 {[%clk
0:02:58.9]} 10. bxc3 {[%clk 0:02:39.3]} 10... exd5 {[%clk 0:02:59.8]} 11. Bd3
{[%clk 0:02:26.4]} 11... c5 {[%clk 0:02:56.9]} 12. h3 {[%clk 0:02:22.9]} 12...
Nc6 {[%clk 0:02:56.6]} 13. O-O {[%clk 0:02:22]} 13... Be6 {[%clk 0:02:55.3]} 14.
Rb1 {[%clk 0:02:21.1]} 14... b6 {[%clk 0:02:55.1]} 15. Re1 {[%clk 0:02:18.3]}
15... Rac8 {[%clk 0:02:54.1]} 16. Bc2 {[%clk 0:02:10.9]} 16... Rfd8 {[%clk
0:02:43.4]} 17. Qd3 {[%clk 0:02:04.8]} 17... g6 {[%clk 0:02:43.5]} 18. Qa6
{[%clk 0:01:54]} 18... Qf6 {[%clk 0:02:31.8]} 19. Qa3 {[%clk 0:01:46.9]} 19...
cxd4 {[%clk 0:02:16.4]} 20. Nxd4 {[%clk 0:01:44.6]} 20... Nxd4 {[%clk
0:02:12.9]} 21. exd4 {[%clk 0:01:41.7]} 21... Rc7 {[%clk 0:02:07.7]} 22. Re3
{[%clk 0:01:39.4]} 22... Rdc8 {[%clk 0:02:05.3]} 23. Rbe1 {[%clk 0:01:37.7]}
23... Kg7 {[%clk 0:01:43.8]} 24. Bd1 {[%clk 0:01:29.5]} 24... Qe7 {[%clk
0:01:35.9]} 25. Qb2 {[%clk 0:01:12.8]} 25... Qd6 {[%clk 0:01:34.5]} 26. Bf3
{[%clk 0:01:11]} 26... Bf5 {[%clk 0:01:26.2]} 27. Qb3 {[%clk 0:01:04.4]} 27...
Rc4 {[%clk 0:01:22.3]} 28. Be2 {[%clk 0:00:52.2]} 28... R4c7 {[%clk 0:01:18.9]}
29. Bf3 {[%clk 0:00:52.1]} 29... Be6 {[%clk 0:01:19.3]} 30. Qb2 {[%clk
0:00:51.2]} 30... Qf4 {[%clk 0:01:11.4]} 31. Qb3 {[%clk 0:00:46.5]} 31... h5
{[%clk 0:01:01.1]} 32. Bxd5 {[%clk 0:00:37.6]} 32... Bxd5 {[%clk 0:01:02]} 33.
Qxd5 {[%clk 0:00:37.6]} 33... Rxc3 {[%clk 0:01:02.7]} 34. Rf3 {[%clk 0:00:35.3]}
34... Rxf3 {[%clk 0:01:02]} 35. gxf3 {[%clk 0:00:27.4]} 35... Qf6 {[%clk
0:00:52.4]} 36. Qe5 {[%clk 0:00:27.2]} 36... Rd8 {[%clk 0:00:51]} 37. Re4 {[%clk
0:00:18.5]} 37... Rd6 {[%clk 0:00:33.7]} 38. Kg2 {[%clk 0:00:18]} 38... Re6
{[%clk 0:00:30.3]} 39. Qxf6+ {[%clk 0:00:18.2]} 39... Kxf6 {[%clk 0:00:31.2]}
40. d5 {[%clk 0:00:17.1]} 40... Rd6 {[%clk 0:00:29.4]} 41. Ra4 {[%clk
0:00:16.2]} 41... a5 {[%clk 0:00:28.7]} 42. Rd4 {[%clk 0:00:14.7]} 42... Ke5
{[%clk 0:00:27.8]} 43. Re4+ {[%clk 0:00:12.3]} 43... Kxd5 {[%clk 0:00:28.1]} 44.
Re7 {[%clk 0:00:12.3]} 44... f5 {[%clk 0:00:28.7]} 45. Rb7 {[%clk 0:00:10.1]}
45... f4 {[%clk 0:00:20.5]} 46. h4 {[%clk 0:00:09.2]} 46... Ke5 {[%clk 0:00:20]}
47. Re7+ {[%clk 0:00:08.2]} 47... Re6 {[%clk 0:00:20.4]} 48. Rb7 {[%clk
0:00:06.9]} 48... Rf6 {[%clk 0:00:20.2]} 49. Kh3 {[%clk 0:00:07.5]} 49... Kd4
{[%clk 0:00:20.5]} 50. Rc7 {[%clk 0:00:07.1]} 50... a4 {[%clk 0:00:19]} 51. Kg2
{[%clk 0:00:07.8]} 51... b5 {[%clk 0:00:17.5]} 52. Rb7 {[%clk 0:00:07.7]} 52...
Kc4 {[%clk 0:00:17.6]} 53. Rc7+ {[%clk 0:00:08.3]} 53... Kb4 {[%clk 0:00:18]}
54. Rc1 {[%clk 0:00:07.8]} 54... Ka3 {[%clk 0:00:17.8]} 55. Rc2 {[%clk
0:00:08.1]} 55... b4 {[%clk 0:00:18.1]} 56. Re2 {[%clk 0:00:08.5]} 56... b3
{[%clk 0:00:18.4]} 57. axb3 {[%clk 0:00:08.7]} 57... axb3 {[%clk 0:00:19.3]} 58.
Re8 {[%clk 0:00:07.4]} 58... b2 {[%clk 0:00:18.9]} 59. Ra8+ {[%clk 0:00:07.2]}
59... Kb3 {[%clk 0:00:19.5]} 60. Rb8+ {[%clk 0:00:07.5]} 60... Kc2 {[%clk
0:00:20.3]} 61. Rc8+ {[%clk 0:00:07.7]} 61... Kb1 {[%clk 0:00:20.8]} 62. Rb8
{[%clk 0:00:07.4]} 62... Ra6 {[%clk 0:00:20.9]} 0-1